Cogmind - Beta 15 @@@ ROGUE MODE // 2025.08.29 @ 13:52:41 Player: winnking222 Result: Destroyed by PN-ELT(R) with Subdweller Machine Gun Performance ------------- Evolutions (0) 0 Regions Visited (2) 400 Robots Destroyed (26) 130 Value Destroyed (568) 568 Prototype IDs (2) 40 Alien Tech Used (0) 0 Bonus (0) 0 TOTAL SCORE: 1138 Bonus ------- None Cogmind --------- Core Integrity 0/250 Matter 288/300 Energy 184/200 System Corruption 1% Temperature Cool (10) Movement Rolling (120) Ox1 Location -10/Subcaves Parts ------- > --- POWER (1) -------- Subdweller Power Source > --- PROPULSION (2) --- Subdweller Monowheel > --- UTILITY (2) ------ Large Storage Unit Hardened Light Armor Plating > --- WEAPON (2) ------- Subdweller Laser Subdweller Laser > --- INVENTORY (15) --- Subdweller Power Source Subdweller Power Source Subdweller Power Source Subdweller Monowheel Huge Storage Unit Subdweller Optics Seismic Detector Hardened Light Armor Plating Hardened Light Armor Plating Hardened Light Armor Plating Subdweller Laser Particle Cannon Assault Rifle Peak State ------------ > --- POWER ------------ Subdweller Power Source > --- PROPULSION ------- Subdweller Monowheel Subdweller Monowheel > --- UTILITY ---------- Large Storage Unit Hardened Light Armor Plating > --- WEAPON ----------- Subdweller Laser Subdweller Machine Gun > --- INVENTORY -------- Subdweller Power Source Subdweller Power Source Subdweller Power Source Subdweller Monowheel Huge Storage Unit Subdweller Optics Seismic Detector Hardened Light Armor Plating Hardened Light Armor Plating Hardened Light Armor Plating Subdweller Laser Subdweller Laser Particle Cannon Assault Rifle [Rating: 15] Favorites ----------- Power Ion Engine Engine Ion Engine Propulsion Light Treads Treads Light Treads Wheel Subdweller Monowheel Utility Large Storage Unit Device Seismic Detector Storage Large Storage Unit Protection Hardened Light Armor Plating Weapon Subdweller Laser Energy Gun Subdweller Laser Energy Cannon Particle Cannon Ballistic Gun Subdweller Machine Gun Build | -11 -10 -10 ------- Run | Yrd Mat Sub Slots Evolved . | . . . Power . | . . . Propulsion . | . . . Utility . | . . . Weapon . | . . . Parts Attached 23 | 7 3 13 Power 4 | 1 1 2 Engine 4 | 1 1 2 Core . | . . . Reactor . | . . . Propulsion 5 | 2 . 3 Treads 2 | 2 . . Leg . | . . . Wheel 3 | . . 3 Hover . | . . . Flight . | . . . Utility 4 | 2 1 1 Device 1 | 1 . . Storage 2 | 1 1 . Processor . | . . . Hackware . | . . . Protection 1 | . . 1 Artifact . | . . . Weapon 10 | 2 1 7 Energy Gun 6 | 2 . 4 Energy Cannon 3 | . 1 2 Ballistic Gun 1 | . . 1 Ballistic Cannon . | . . . Launcher . | . . . Special Weapon . | . . . Impact Weapon . | . . . Slashing Weapon . | . . . Piercing Weapon . | . . . Special Melee Weapon . | . . . Unidentified Prototypes . | . . . Parts Lost 6 | . . 6 Power . | . . . Propulsion 4 | . . 4 Utility . | . . . Weapon 2 | . . 2 Highest Loss Streak 3 | . . 3 To Critical Strikes . | . . . Average Backups 10 | 4 8 14 Power 1 | . . 2 Propulsion 2 | 2 2 2 Utility 3 | . 3 5 Weapon 3 | 1 2 4 Tool/Special . | . . . Unused Backups 19 | . 6 13 Power 3 | . . 3 Propulsion 4 | . 2 2 Utility 7 | . 2 5 Weapon 5 | . 2 3 Tool/Special . | . . . Average Slot Usage (%) 99 | . 100 99 Engine 14 | . 14 14 Treads 24 | . 28 21 Wheel 2 | . . 6 Device 7 | . 14 . Storage 14 | . 14 14 Protection 6 | . . 13 Energy Gun 21 | . 20 21 Energy Cannon 5 | . 7 4 Ballistic Gun 1 | . . 2 Peak Build Rating 15 | 7 9 15 Average Rating 9 | 4 8 12 On Entrance 5 | . 7 9 Naked Turns . | . . . Heaviest Build 38 | 14 32 38 Greatest Support 40 | 40 40 40 Greatest Overweight (x) 1 | . . 1 Average Overweight (x) . | . . . Largest Inventory Capacity 15 | 8 15 15 Average Capacity 12 | 7 11 15 Most Carried 15 | 7 12 15 Average Carried 10 | 5 8 14 Final Capacity 15 | 8 15 15 Final Carried 13 | 6 12 13 Class Distribution -------------------- 100% | Mutant Dominant Class ---------------- Mutant | -10/Materials Mutant | -10/Subcaves Resources | -11 -10 -10 ----------- Run | Yrd Mat Sub Matter Collected 438 | 270 23 145 Remotely . | . . . Salvage Created 761 | 121 248 392 Parts 61 | 13 22 26 Haulers Intercepted . | . . . Recyclers Shooed 1 | 1 . . Parts Field Recycled . | . . . Retrieved Matter . | . . . Parts Self-Destructed 4 | . . 4 Prevented 2 | . . 2 Kills | -11 -10 -10 ------- Run | Yrd Mat Sub Combat Hostiles Destroyed 19 | . 8 11 Melee 1 | . 1 . Guns 14 | . 7 7 Cannons 4 | . . 4 Classes Destroyed 6 | 2 3 1 Tunneler 4 | 4 . . Recycler 1 | 1 . . Watcher 2 | . 2 . Swarmer 8 | . 5 3 Grunt 3 | . 3 . Subdweller 8 | . . 8 Best Kill Streak 4 | 4 3 3 Combat Bots Only 3 | . 3 3 Max Kills in Single Turn 1 | 1 1 1 Gunslinging . | . . . Exploded . | . . . Melee 1 | . 1 . Uniques/NPCs Destroyed . | . . . Combat | -11 -10 -10 -------- Run | Yrd Mat Sub Hostile Shots Fired 120 | . 41 79 Missed 36 | . 10 26 Hits 84 | . 31 53 Projectile 84 | . 31 53 Damage Taken 1184 | . 301 883 Core 250 | . 13 237 Absorbed by Shields . | . . . Core Remaining (%) 100 | 100 . . Volleys Fired 99 | 8 37 54 Largest 2 | 2 2 2 Hottest 136 | 90 118 136 Shots Fired 197 | 16 73 108 Gun 167 | 16 64 87 Cannon 30 | . 9 21 Launcher . | . . . Special . | . . . Kinetic 12 | . . 12 Thermal 176 | 16 73 87 Explosive . | . . . Electromagnetic 9 | . . 9 Robot Hit Streak 11 | 10 11 8 Robot Miss Streak 4 | 2 4 2 Penetration Max . | . . . Secondary Targets 3 | . 2 1 Max Gunslinging Chain 1 | . 1 1 Shots Hit Robots 110 | 11 41 58 Core Hits 43 | 6 17 20 Critical Kills . | . . . Critical Parts Destroyed . | . . . Critical Strikes 6 | . 4 2 Burn 4 | . 4 . Destroy 1 | . . 1 Corrupt 1 | . . 1 Melee Attacks . | . . . Impact . | . . . Slashing . | . . . Piercing . | . . . Sneak Attacks . | . . . Combat Hostiles . | . . . Follow-up Attacks . | . . . Damage Inflicted 1837 | 129 577 1131 Guns 1368 | 129 436 803 Cannons 449 | . 121 328 Explosions . | . . . Melee . | . . . Ramming 20 | . 20 . Kinetic 154 | . . 154 Thermal 1584 | 129 557 898 Explosive . | . . . Electromagnetic 79 | . . 79 Impact . | . . . Slashing . | . . . Piercing . | . . . Highest Corruption 1 | . 1 1 Average Corruption 1 | . 1 1 Corruption Purged . | . . . Corruption Blocked . | . . . Effects 18 | . 5 13 Message Errors 6 | . 1 5 Matter Fused 3 | . . 3 Heat Flow Errors 4 | . 2 2 Energy Discharges 3 | . 1 2 Data Loss (minor) 1 | . . 1 Alerts 1 | . 1 . Overload Shots . | . . . Overflow Damage 4 | . 3 1 Projectiles 4 | . 3 1 Explosions . | . . . Melee . | . . . Knockbacks . | . . . Impact . | . . . Kinetic . | . . . Secondary . | . . . Self-Inflicted Damage . | . . . Shots . | . . . Rammed 5 | . 5 . Targets Rammed 5 | . 5 . Kicked . | . . . Crushed . | . . . Highest Temperature 305 | 102 305 175 Average Temperature 64 | 44 85 41 Received Heat Transfer 180 | . 96 84 Siege Activations . | . . . Martial Activations . | . . . Shielding Activations . | . . . Robots Disrupted . | . . . Combat Hostiles . | . . . Robots Corrupted . | . . . Combat Hostiles . | . . . Parts Fried . | . . . Impact Corruptions . | . . . Robots Melted . | . . . Combat Hostiles . | . . . Parts Melted 8 | 1 4 3 Heat Transferred 3334 | 347 1695 1292 Parts Sabotaged . | . . . Parts Stolen . | . . . Parts Stripped . | . . . Power Chain Reactions . | . . . Alert | -11 -10 -10 ------- Run | Yrd Mat Sub Maximum Alert Level . | . . . Low Security (%) 100 | 100 100 . Level 1 . | . . . Level 2 . | . . . Level 3 . | . . . Level 4 . | . . . Level 5 . | . . . High Security . | . . . Max Security . | . . . Peak Influence 70 | 5 70 . Initial . | . . . Average 7 | 1 8 . Influence Increases 330 | 25 235 70 Destroy 0b10 Robot/C 220 | . 160 60 Destroy 0b10 Robot/NC 35 | 25 10 . Destroy Leader 54 | . 44 10 Successful Hack 20 | . 20 . Destroy Structure 1 | . 1 . Influence Decreases 330 | 25 235 70 Time Decay 330 | 25 235 70 Squads Dispatched 2 | . 2 . Investigation 2 | . 2 . Extermination . | . . . Reinforcement . | . . . Assault . | . . . Garrison . | . . . Intercept . | . . . Searches Triggered . | . . . Construction Impeded . | . . . Haulers Reinforced . | . . . Active Scanning Responses . | . . . Cargo Convoy Interrupts . | . . . Stealth | -11 -10 -10 --------- Run | Yrd Mat Sub Distress Signals . | . . . Communications Jammed . | . . . Distress Signals . | . . . Times Spotted 30 | . 16 14 Peak Tracking Total 4 | . 3 4 Tactical Retreats . | . . . Traps | -11 -10 -10 ------- Run | Yrd Mat Sub Traps Triggered 2 | . 2 . Indirectly . | . . . Trap Hack Attempts . | . . . Triggered . | . . . Disarmed . | . . . Reprogrammed . | . . . Reused . | . . . Traps Extracted . | . . . Installed . | . . . Triggered . | . . . Machines | -11 -10 -10 ---------- Run | Yrd Mat Sub Machines Disabled . | . . . Max in Single Turn . | . . . Machines Repaired . | . . . Machines Dismantled . | . . . Machines Sabotaged . | . . . Overloaded Fab Kills . | . . . Hacking | -11 -10 -10 --------- Run | Yrd Mat Sub Machines Accessed 7 | . 6 1 Terminals 6 | . 6 . Fabricators . | . . . Repair Stations . | . . . Recycling Units . | . . . Scanalyzers . | . . . Garrison Access . | . . . Total Hacks 23 | . 18 5 Successful 17 | . 12 5 Failed 6 | . 6 . Catastrophic 1 | . 1 . Database Lockouts . | . . . Manual 15 | . 15 . Terminals 18 | . 18 . Fabricators . | . . . Repair Stations . | . . . Recycling Units . | . . . Scanalyzers . | . . . Garrison Access . | . . . Terminal Hacks 8 | . 3 5 Record 5 | . . 5 Prototype ID Bank 1 | . 1 . Zone Layout 2 | . 2 . Fabricator Hacks . | . . . Repair Station Hacks . | . . . Recycling Unit Hacks . | . . . Scanalyzer . | . . . Garrison Access Hacks . | . . . Unauthorized Hacks 9 | . 9 . Terminals 9 | . 9 . Botnet 4 | . 4 . Skim 5 | . 5 . Fabricators . | . . . Repair Stations . | . . . Recycling Units . | . . . Scanalyzers . | . . . Garrison Access . | . . . Data Cores Recovered . | . . . Used . | . . . Hacking Detections 3 | . 3 . Full Trace Events 1 | . 1 . Feedback Events 1 | . 1 . Corruption 1 | . 1 . Feedback Blocked . | . . . Robot Schematics Acquired . | . . . Robots Built . | . . . Authchips . | . . . Time . | . . . Total Robot Build Rating . | . . . Part Schematics Acquired . | . . . Parts Built . | . . . Authchips . | . . . Time . | . . . Total Part Build Rating . | . . . Parts Repaired . | . . . Time . | . . . Parts Recycled . | . . . Recycled Matter . | . . . Retrieved Matter . | . . . Retrieved Components . | . . . Parts Scanalyzed . | . . . Part Schematics Acquired . | . . . Parts Damaged . | . . . Bothacking | -11 -10 -10 ------------ Run | Yrd Mat Sub Used RIF Installer . | . . . Robots Hacked . | . . . Non-combat . | . . . Combat . | . . . Robot Hacks Applied . | . . . Relay Couplers Released . | . . . Fabnet Peak Effective % . | . . . Robots Rewired . | . . . Allies Hacked . | . . . Hacks Repelled . | . . . Allies | -11 -10 -10 -------- Run | Yrd Mat Sub Total Allies . | . . . Largest Group . | . . . Highest-Rated Group . | . . . Highest-Rated Ally . | . . . Total Orders . | . . . Ally Attacks . | . . . Total Damage . | . . . Kills . | . . . Allies Corrupted . | . . . Allies Melted . | . . . Intel | -11 -10 -10 ------- Run | Yrd Mat Sub Active Infowar (turns) 1590 | 16 1548 26 Seismic 1590 | 16 1548 26 Robot Analysis Total . | . . . Derelict Logs Recovered . | . . . Drone Launches . | . . . Drone Recoveries . | . . . Exploration | -11 -10 -10 ------------- Run | Yrd Mat Sub Turns Passed 3122 | 140 1548 1434 Spaces Moved 1715 | 68 798 849 Core 11 | 11 . . Treads 1406 | 57 798 551 Legs . | . . . Wheels 298 | . . 298 Hover . | . . . Flight . | . . . Fastest Speed 50 | 50 160 107 Average Speed 151 | 142 160 143 Slowest Speed 240 | 160 160 240 Overloaded Moves . | . . . Propulsion Burnouts . | . . . Robots Hopped . | . . . Potential Cave-ins . | . . . Cave-ins Triggered . | . . . Exploration Rate (%) 47 | 4 91 47 Regions Visited 2 Branch Regions 1 Pre-discovered Areas 1 | . . 1 Known Exits Taken 1 | . 1 . Unknown Exits Taken 1 | 1 . . Scrap Searched 4 | . . 4 Spaces Dug 1 | . . 1 Terrain Destroyed 1 | . . 1 Melee . | . . . Projectile 1 | . . 1 AOE . | . . . Terrain Rammed . | . . . Walls Destroyed . | . . . Machines Disabled . | . . . Actions | -11 -10 -10 --------- Run | Yrd Mat Sub Total 2048 | 95 997 956 Wait 152 | . 132 20 Move 1713 | 67 797 849 Hop . | . . . Pick Up 39 | 13 14 12 Fast Attach . | . . . Attach 14 | 7 1 6 Detach . | . . . Swap 9 | . 2 7 Drop 17 | . 9 8 Fire 99 | 8 37 54 Melee . | . . . Ram . | . . . Kick . | . . . Crush 5 | . 5 . Escape Stasis . | . . . Rewire . | . . . Trap . | . . . Miscellaneous . | . . . Route ------- -11/Scrapyard -10/Materials (discovered 6 exits: *Mat x3 / [*Min x2] / *Sub) -10/Subcaves (discovered 3 exits: Mat x2 / Rec) History --------- Turn | Location | Event 9 | -11/Scrapyard | Discovered new exit (range 15) 141 | -11/Scrapyard | Entered Materials 317 | -10/Materials | Build established: Mutant 334 | -10/Materials | Discovered new exit (range 16) 708 | -10/Materials | Discovered new exit (range 12) 791 | -10/Materials | Discovered new exit (range 13) 831 | -10/Materials | Discovered new exit (range 11) 1146 | -10/Materials | Identified exit to Materials 1146 | -10/Materials | Identified exit to Subcaves 1189 | -10/Materials | Loaded intel: 36 non-interactive machine locations 1223 | -10/Materials | Learned location of 2 exits from Materials 1258 | -10/Materials | Learned location of 1 exit from Storage 1275 | -10/Materials | Learned location of 2 exits from Subcaves 1689 | -10/Materials | Entered Subcaves 1690 | -10/Subcaves | Identified exit to Materials 1691 | -10/Subcaves | Identified exit to Recycling 2258 | -10/Subcaves | Shifting Twisted Machinery released Piercing Trap 2495 | -10/Subcaves | Visited Clippyterm 2500 | -10/Subcaves | Learned location of Section 7 (-2) 2500 | -10/Subcaves | Learned Factory garrison access intel 2666 | -10/Subcaves | Core integrity fell below 50% 3120 | -10/Subcaves | Core integrity fell below 20% 3123 | -10/Subcaves | Destroyed by PN-ELT(R) with Subdweller Machine Gun Last Messages --------------- 02968_ GZ-A43(R) destroyed. 02972_ Acquired 4 matter. 02976_ Acquired Sub. Monowheel. 02978_ Dropped Corrupted Sub. Power Source. 02981_ Acquired 10 matter. 02984_ Searching scrap... 02984_ Found Flamer. 02984_ Found 64 Matter. 02985_ Searching scrap... 02985_ Found Mak. Hammer. 02985_ Found 42 Matter. 03055_ Acquired 2 matter. 03062_ QP2WHSPARFRIY>K#<9WJPJ | | ?????????????????????????????????????????????????? | | ?????????????????????????????????????????????????? | | ?????????????????????????????????????????????????? | | ?????????????????????????????????????????????????? | | ?????????????????????????????????????????????????? | | ?????????????????????????????????????????????????? | | ?????????????????????????????????????????????????? | | ?????????????????????????????????????????????????? | | ?????????????????????????????????????????????????? | +----------------------------------------------------+ Best States ------------- Heat Dissipation 25 Energy Generation 15 Energy Capacity 250 Matter Stores 300 Matter Capacity 300 Sight Range 16 Terrain Scan Density 10 Armor Coverage 150 Evasion (%) 50 Recoil Reduction 2 Item Schematics ----------------- None Robot Schematics ------------------ None Fabricated ------------ Nothing Repaired ---------- Nothing Alien Tech Used ----------------- None Achievements -------------- None Challenges ------------ None Game ------ Seed InterceptLauncherFocus Manual? 0 Play Time 00:13:57 Cumulative 154.5 hours Start 2025.08.29 @ 13:39:12 End 2025.08.29 @ 13:52:41 Sessions 1 Manual Loads 0 Difficulty Rogue Special Mode None Game No. 219 Rogue 219 Adventurer 0 Explorer 0 Win Type - Total 1 Types 1/0/0/0/0/0/0/0/0/0 Lore% 71 Gallery% 64 Achievement% 55 Wizard Run 0 Options --------- Layout 0 ASCII 0 Keyboard 0 Movement Mouse Keybinds 0 Fullscreen 1 Font 16/SmallcapsGlow Map View 75x55 Zoom Use 0% Tactical HUD 1 Map Filters NONE Filters NONE Steam 1 RUN: f9d3deeb-ccfb-4f63-8f4d-7a09c69d0b66